fUST/lending_fUST_20240123
["ID","MTS","AMOUNT","RATE_DAILY","PERIOD"]
[312533148,1705947514346,-150.98638473,0.00040389,30]
[312533149,1705947514370,-150.0,0.000404,30]
[312533150,1705947514393,-150.0,0.000406,30]
[312533151,1705947514416,-447.60588291,0.00040629,30]
[312533152,1705947514439,-447.60588291,0.00040635,30]
[312533153,1705947514462,-150.98638473,0.00040641,30]
[312533154,1705947514485,-447.60588291,0.00040703,30]
[312533155,1705947514508,-166.88297361,0.00040724,30]
[312533156,1705947514534,-150.98638473,0.00040746,30]
[312533157,1705947514558,-151.11226386,0.00040793,30]
[312533158,1705947514582,-150.0,0.000408,30]
[312533159,1705947514605,-150.98638473,0.00040887,30]
[312533160,1705947514628,-150.98638473,0.00040915,30]
[312533161,1705947514653,-447.60588291,0.00040927,30]
[312533162,1705947514677,-447.60588291,0.00040992,30]
[312533163,1705947514700,-150.0,0.00041,30]
[312533164,1705947514724,-235.27333687,0.00041,90]
[312533165,1705947514746,-375.83615278,0.00041,30]
[312533166,1705947514769,-1000.0,0.00041,41]
[312533167,1705947514793,-600.0,0.00041014,30]
[312533168,1705947514815,-500.0,0.00041095,31]
[312533169,1705947514840,-1047.38,0.00041095,31]
[312533170,1705947514863,-500.0,0.00041095,31]
[312533171,1705947514887,-500.0,0.00041095,31]
[312533172,1705947514910,-500.0,0.00041095,31]
[312533173,1705947514934,-500.0,0.00041095,31]
[312533174,1705947514957,-501.98682253,0.00041095,31]
[312533175,1705947514982,-500.0,0.00041095,31]
[312533176,1705947515006,-500.0,0.00041095,31]
[312533177,1705947515030,-500.0,0.00041095,31]
[312533178,1705947515053,-501.93585568,0.00041095,31]
[312533179,1705947515082,-500.0,0.00041095,31]
[312533180,1705947515109,-497.91391953,0.00041095,31]
[312533181,1705947515134,-571.3,0.00041095,31]
[312533182,1705947515159,-500.0,0.00041095,31]
[312533183,1705947515185,-581.8725791,0.00041095,31]
[312533184,1705947515211,-500.0,0.00041095,31]
[312533185,1705947515235,-500.0,0.00041095,31]
[312533186,1705947515260,-500.0,0.00041095,31]
[312533187,1705947515283,-501.77617742,0.00041095,31]
[312533188,1705947515307,-502.03435107,0.00041095,31]
[312533189,1705947515332,-500.0,0.00041095,31]
[312533190,1705947515357,-501.05837074,0.00041095,31]
[312533191,1705947515382,-500.0,0.00041095,31]
[312533192,1705947515517,-500.0,0.00041095,31]
[312533193,1705947515541,-500.0,0.00041095,31]
[312533194,1705947515565,-500.0,0.00041095,31]
[312533195,1705947515588,-500.0,0.00041095,31]
[312533196,1705947515613,-500.0,0.00041095,31]
[312533197,1705947515637,-200.0,0.00041095,31]
[312533198,1705947515661,-500.0,0.00041095,31]
[312533199,1705947515684,-500.0,0.00041095,31]
[312533200,1705947515707,-453.44015408,0.00041095,31]
[312533201,1705947515731,-500.0,0.00041095,31]
[312533202,1705947515755,-500.0,0.00041095,31]
[312533203,1705947515778,-500.0,0.00041095,31]
[312533204,1705947515802,-150.0,0.00041095,31]
[312533205,1705947515826,-500.0,0.00041095,31]
[312533206,1705947515852,-500.0,0.00041095,31]
[312533207,1705947515877,-500.89280866,0.00041095,31]
[312533208,1705947515902,-503.92517647,0.00041095,31]
[312533209,1705947515927,-500.0,0.00041095,31]
[312533210,1705947515951,-500.0,0.00041095,31]
[312533211,1705947515977,-567.11,0.00041095,31]
[312533212,1705947516002,-500.0,0.00041095,31]
[312533213,1705947516026,-500.0,0.00041095,31]
[312533214,1705947516050,-501.40920618,0.00041095,31]
[312533215,1705947516072,-500.0,0.00041095,31]
[312533216,1705947516098,-500.0,0.00041095,31]
[312533217,1705947516125,-502.968745,0.00041095,31]
[312533218,1705947516150,-504.03088729,0.00041095,31]
[312533219,1705947516174,-500.0,0.00041095,31]
[312533220,1705947516198,-502.67830291,0.00041095,31]
[312533221,1705947516223,-503.25238646,0.00041095,31]
[312533222,1705947516247,-502.20183492,0.00041095,31]
[312533223,1705947516271,-500.0,0.00041095,31]
[312533224,1705947516294,-503.31657388,0.00041095,31]
[312533225,1705947516317,-503.11091725,0.00041095,31]
[312533226,1705947516344,-500.0,0.00041095,31]
[312533227,1705947516369,-458.52586913,0.00041095,31]
[312533228,1705947516395,-500.0,0.00041095,31]
[312533229,1705947516422,-505.46110484,0.00041095,31]
[312533230,1705947516447,-1126.09,0.00041095,31]
[312533231,1705947516472,-500.0,0.00041095,31]
[312533232,1705947516498,-500.0,0.00041095,31]
[312533233,1705947516522,-1014.23,0.00041095,31]
[312533234,1705947516546,-500.0,0.00041095,30]
[312533235,1705947516569,-500.0,0.00041095,30]
[312533236,1705947516596,-500.0,0.00041095,30]
[312533237,1705947516619,-500.0,0.00041095,30]
[312533238,1705947516641,-347.71074427,0.00041095,30]
[312533239,1705947516664,-515.2,0.00041095,31]
[312533240,1705947516688,-500.0,0.00041095,31]
[312533241,1705947516712,-504.16741513,0.00041095,31]
[312533242,1705947516736,-500.0,0.00041095,31]
[312533243,1705947516759,-702.06,0.00041095,31]
[312533244,1705947516782,-702.06,0.00041095,31]
[312533245,1705947516805,-702.06,0.00041095,31]
[312533246,1705947516831,-702.06,0.00041095,31]
[312533247,1705947516854,-702.06,0.00041095,31]
[312533248,1705947516876,-702.06,0.00041095,31]
[312533249,1705947516899,-702.06,0.00041095,31]
[312533250,1705947516922,-702.06,0.00041095,31]
[312533251,1705947516946,-702.06,0.00041095,31]
[312533252,1705947516969,-702.06,0.00041095,31]
[312533253,1705947516993,-702.06,0.00041095,31]
[312533254,1705947517016,-702.06,0.00041095,31]
[312533255,1705947517040,-702.06,0.00041095,31]
[312533256,1705947517063,-702.06,0.00041095,31]
[312533257,1705947517090,-702.06,0.00041095,31]
[312533258,1705947517114,-702.06,0.00041095,31]
[312533259,1705947517139,-500.0,0.00041095,31]
[312533260,1705947517164,-702.06,0.00041095,31]
[312533261,1705947517187,-702.06,0.00041095,31]
[312533262,1705947517210,-702.06,0.00041095,31]
[312533263,1705947517234,-702.06,0.00041095,31]
[312533264,1705947517257,-702.06,0.00041095,31]
[312533265,1705947517282,-702.06,0.00041095,31]
[312533266,1705947517305,-702.06,0.00041095,31]
[312533267,1705947517328,-702.13099755,0.00041095,31]
[312533268,1705947517353,-501.89828724,0.00041095,31]
[312533269,1705947517378,-500.0,0.00041095,31]
[312533270,1705947517402,-500.0,0.00041095,31]
[312533271,1705947517425,-500.0,0.00041095,31]
[312533272,1705947517449,-500.0,0.00041095,31]
[312533273,1705947517473,-500.0,0.00041095,31]
[312533274,1705947517497,-500.0,0.00041095,31]
[312533275,1705947517520,-679.61,0.00041095,31]
[312533276,1705947517544,-500.0,0.00041095,31]
[312533277,1705947517569,-504.50848364,0.00041095,31]
[312533278,1705947517593,-500.0,0.00041095,31]
[312533279,1705947517617,-597.14788468,0.00041095,31]
[312533280,1705947517640,-500.0,0.00041095,31]
[312533281,1705947517664,-500.0,0.00041095,31]
[312533282,1705947517686,-801.83,0.00041095,31]
[312533283,1705947517709,-500.0,0.00041095,31]
[312533284,1705947517732,-500.0,0.00041095,31]
[312533285,1705947517755,-500.0,0.00041095,31]
[312533286,1705947517779,-226.0,0.00041095,31]
[312533287,1705947517803,-1114.81,0.00041095,31]
[312533288,1705947517828,-290.0582979,0.00041095,31]
[312533289,1705947517854,-529.18,0.00041095,31]
[312533290,1705947517880,-502.50573028,0.00041095,31]
[312533291,1705947517903,-500.0,0.00041095,31]
[312533292,1705947517927,-500.0,0.00041095,31]
[312533293,1705947517950,-500.0,0.00041095,31]
[312533294,1705947517975,-243.36415622,0.00041095,31]
[312533295,1705947517999,-297.79732766,0.00041095,31]
[312533296,1705947518023,-500.0,0.00041095,31]
[312533297,1705947518153,-463.16600935,0.00041095,31]
[312533298,1705947518177,-500.0,0.00041095,31]
[312533299,1705947518201,-500.0,0.00041095,31]
[312533300,1705947518227,-423.0388607,0.00041095,31]
[312533301,1705947518253,-500.0,0.00041095,31]
[312533302,1705947518280,-494.17995334,0.00041095,31]
[312533303,1705947518306,-500.0,0.00041095,31]
[312533304,1705947518336,-493.88270056,0.00041095,31]
[312533305,1705947518363,-768.35,0.00041095,31]
[312533306,1705947518389,-500.0,0.00041095,31]
[312533307,1705947518414,-500.0,0.00041095,31]
[312533308,1705947518440,-501.18989366,0.00041095,31]
[312533309,1705947518466,-1774.13,0.00041095,31]
[312533310,1705947518491,-500.0,0.00041095,31]
[312533311,1705947518517,-604.97,0.00041095,31]
[312533312,1705947518543,-500.0,0.00041095,31]
[312533313,1705947518569,-500.0,0.00041095,31]
[312533314,1705947518599,-504.53791537,0.00041095,31]
[312533315,1705947518626,-1380.22,0.00041095,31]
[312533316,1705947518651,-1732.72,0.00041095,31]
[312533317,1705947518676,-873.08,0.00041095,31]
[312533318,1705947518701,-500.0,0.00041095,31]
[312533319,1705947518728,-500.0,0.00041095,31]
[312533320,1705947518753,-508.76926993,0.00041095,31]
[312533321,1705947518778,-503.99545693,0.00041095,31]
[312533322,1705947518803,-500.0,0.00041095,31]
[312533323,1705947518827,-510.32293522,0.00041095,31]
[312533324,1705947518854,-500.0,0.00041095,31]
[312533325,1705947518877,-505.65976221,0.00041095,31]
[312533326,1705947518901,-503.962728,0.00041095,31]
[312533327,1705947518925,-439.45148265,0.00041095,31]
[312533328,1705947518950,-500.0,0.00041095,31]
[312533329,1705947518975,-500.0,0.00041095,31]
[312533330,1705947518999,-500.0,0.00041095,31]
[312533331,1705947519023,-500.0,0.00041095,31]
[312533332,1705947519049,-500.0,0.00041095,31]
[312533333,1705947519072,-501.77657072,0.00041095,31]
[312533334,1705947519100,-1700.64,0.00041095,31]
[312533335,1705947519124,-500.0,0.00041095,31]
[312533336,1705947519148,-501.63447845,0.00041095,31]
[312533337,1705947519173,-500.0,0.00041095,31]
[312533338,1705947519198,-500.0,0.00041095,31]
[312533339,1705947519222,-500.0,0.00041095,31]
[312533340,1705947519247,-500.0,0.00041095,31]
[312533341,1705947519270,-501.18089107,0.00041095,31]
[312533342,1705947519294,-500.0,0.00041095,31]
[312533343,1705947519318,-500.0,0.00041095,31]
[312533344,1705947519343,-638.47,0.00041095,31]
[312533345,1705947519367,-502.36758433,0.00041095,31]
[312533346,1705947519390,-500.0,0.00041095,31]
[312533347,1705947519414,-500.0,0.00041095,31]
[312533348,1705947519437,-511.82406535,0.00041095,31]
[312533349,1705947519460,-507.4500376,0.00041095,31]
[312533350,1705947519484,-829.19,0.00041095,31]
[312533351,1705947519508,-1817.75,0.00041095,31]
[312533352,1705947519531,-500.0,0.00041095,31]
[312533353,1705947519560,-522.79162472,0.00041095,31]
[312533354,1705947519590,-500.0,0.00041095,31]
[312533355,1705947519619,-1681.68,0.00041095,31]
[312533356,1705947519646,-500.0,0.00041095,31]
[312533357,1705947519676,-676.26,0.00041095,31]
[312533358,1705947519705,-500.0,0.00041095,31]
[312533359,1705947519734,-500.0,0.00041095,31]
[312533360,1705947519762,-500.0,0.00041095,31]
[312533361,1705947519789,-500.0,0.00041095,31]
[312533362,1705947519816,-500.0,0.00041095,31]
[312533363,1705947519844,-500.0,0.00041095,31]
[312533364,1705947519872,-500.0,0.00041095,31]
[312533365,1705947519902,-500.0,0.00041095,31]
[312533366,1705947519933,-596.94099766,0.00041095,31]
[312533367,1705947519959,-500.0,0.00041095,31]
[312533368,1705947519989,-500.0,0.00041095,31]
[312533369,1705947520019,-500.0,0.00041095,31]
[312533370,1705947520048,-520.05303069,0.00041095,31]
[312533371,1705947520073,-640.07,0.00041095,31]
[312533372,1705947520103,-500.0,0.00041095,31]
[312533373,1705947520136,-505.35438239,0.00041095,31]
[312533374,1705947520165,-502.48143469,0.00041095,31]
[312533375,1705947520196,-500.0,0.00041095,31]
[312533376,1705947520227,-552.87,0.00041095,31]
[312533377,1705947520256,-500.0,0.00041095,31]
[312533378,1705947520282,-949.36,0.00041095,31]
[312533379,1705947520308,-502.07001464,0.00041095,31]
[312533380,1705947520339,-1114.79,0.00041095,31]
[312533381,1705947520366,-500.0,0.00041095,31]
[312533382,1705947520393,-500.0,0.00041095,31]
[312533383,1705947520418,-1340.33,0.00041095,31]
[312533384,1705947520443,-500.0,0.00041095,31]
[312533385,1705947520470,-500.0,0.00041095,31]
[312533386,1705947520495,-500.0,0.00041095,31]
[312533387,1705947520522,-1551.85,0.00041095,31]
[312533388,1705947520547,-500.0,0.00041095,31]
[312533389,1705947520573,-1962.09,0.00041095,31]
[312533390,1705947520601,-500.0,0.00041095,31]
[312533391,1705947520628,-500.0,0.00041095,31]
[312533392,1705947520657,-502.62422525,0.00041095,31]
[312533393,1705947520686,-1825.15,0.00041095,31]
[312533394,1705947520715,-500.0,0.00041095,31]
[312533395,1705947520745,-2171.83,0.00041095,31]
[312533396,1705947520775,-236.9533294,0.00041095,31]
[312533397,1705947520805,-500.0,0.00041095,31]
[312533398,1705947520837,-500.0,0.00041095,31]
[312533399,1705947520868,-500.0,0.00041095,31]
[312533400,1705947520897,-1619.98,0.00041095,31]
[312533401,1705947520925,-500.0,0.00041095,31]
[312533402,1705947520953,-500.0,0.00041095,31]
[312533403,1705947520981,-500.0,0.00041095,31]
[312533404,1705947521009,-500.0,0.00041095,31]
[312533405,1705947521040,-500.0,0.00041095,31]
[312533406,1705947521068,-500.0,0.00041095,31]
[312533407,1705947521251,-501.18123835,0.00041095,31]
[312533408,1705947521277,-741.59,0.00041095,31]
[312533409,1705947521301,-500.0,0.00041095,31]
[312533410,1705947521325,-503.06191504,0.00041095,31]
[312533411,1705947521352,-556.47,0.00041095,31]
[312533412,1705947521376,-502.23060497,0.00041095,31]
[312533413,1705947521399,-500.0,0.00041095,31]
[312533414,1705947521423,-500.0,0.00041095,31]
[312533415,1705947521449,-1775.47,0.00041095,31]
[312533416,1705947521473,-500.0,0.00041095,31]
[312533417,1705947521497,-500.0,0.00041095,31]
[312533418,1705947521522,-502.03211732,0.00041095,31]
[312533419,1705947521545,-564.89,0.00041095,31]
[312533420,1705947521568,-500.0,0.00041095,31]
[312533421,1705947521591,-500.0,0.00041095,31]
[312533422,1705947521614,-1289.28,0.00041095,31]
[312533423,1705947521638,-464.15747196,0.00041095,31]
[312533424,1705947521661,-504.41821264,0.00041095,31]
[312533425,1705947521683,-500.0,0.00041095,31]
[312533426,1705947521707,-500.0,0.00041095,31]
[312533427,1705947521730,-1337.29,0.00041095,31]
[312533428,1705947521753,-1443.88,0.00041095,31]
[312533429,1705947521776,-504.68488454,0.00041095,31]
[312533430,1705947521801,-162.52459058,0.0004113,30]
[312533431,1705947521826,-447.60588291,0.00041168,30]
[312533432,1705947521851,-1317.377957,0.00041174,30]
[312533433,1705947521874,-150.98638473,0.00041187,30]
[312533434,1705947521899,-150.0,0.000412,30]
[312533435,1705947521923,-166.88297361,0.00041204,30]
[312533436,1705947521947,-447.60588291,0.00041218,30]
[312533437,1705947521970,-150.98638473,0.00041328,30]
[312533438,1705947521993,-150.98638473,0.0004133,30]
[312533439,1705947522016,-154.87812389,0.00041332,30]
[312533440,1705947522039,-501.65636611,0.00041369,31]
[312533441,1705947522062,-1047.38,0.00041369,31]
[312533442,1705947522088,-500.0,0.00041369,31]
[312533443,1705947522111,-503.352653,0.00041369,31]
[312533444,1705947522138,-500.0,0.00041369,31]
[312533445,1705947522161,-500.0,0.00041369,31]
[312533446,1705947522186,-505.46527072,0.00041369,31]
[312533447,1705947522212,-502.82862532,0.00041369,31]
[312533448,1705947522236,-500.0,0.00041369,31]
[312533449,1705947522259,-500.0,0.00041369,31]
[312533450,1705947522281,-571.3,0.00041369,31]
[312533451,1705947522305,-500.0,0.00041369,31]
[312533452,1705947522329,-561.82349144,0.00041369,31]
[312533453,1705947522354,-500.0,0.00041369,31]
[312533454,1705947522378,-580.35254449,0.00041369,31]
[312533455,1705947522402,-500.0,0.00041369,31]
[312533456,1705947522425,-500.0,0.00041369,31]
[312533457,1705947522448,-500.0,0.00041369,31]
[312533458,1705947522472,-500.0,0.00041369,31]
[312533459,1705947522497,-500.0,0.00041369,31]
[312533460,1705947522519,-500.0,0.00041369,31]
[312533461,1705947522542,-500.0,0.00041369,31]
[312533462,1705947522566,-253.83244661,0.00041369,31]
[312533463,1705947522589,-500.0,0.00041369,31]
[312533464,1705947522613,-500.0,0.00041369,31]
[312533465,1705947522636,-500.0,0.00041369,31]
[312533466,1705947522659,-500.0,0.00041369,31]
[312533467,1705947522683,-500.0,0.00041369,31]
[312533468,1705947522706,-150.0,0.00041369,31]
[312533469,1705947522729,-500.0,0.00041369,31]
[312533470,1705947522753,-501.28879918,0.00041369,31]
[312533471,1705947522776,-500.0,0.00041369,31]
[312533472,1705947522802,-500.0,0.00041369,31]
[312533473,1705947522826,-567.11,0.00041369,31]
[312533474,1705947522852,-500.0,0.00041369,31]
[312533475,1705947522877,-500.0,0.00041369,31]
[312533476,1705947522901,-587.35290045,0.00041369,31]
[312533477,1705947522924,-503.72810246,0.00041369,31]
[312533478,1705947522949,-500.0,0.00041369,31]
[312533479,1705947522972,-500.0,0.00041369,31]
[312533480,1705947522996,-629.83167413,0.00041369,31]
[312533481,1705947523020,-500.0,0.00041369,31]
[312533482,1705947523044,-1126.09,0.00041369,31]
[312533483,1705947523069,-163.00278446,0.00041369,31]
[312533484,1705947523095,-500.0,0.00041369,31]
[312533485,1705947523120,-1014.23,0.00041369,31]
[312533486,1705947523144,-515.2,0.00041369,31]
[312533487,1705947523169,-500.0,0.00041369,31]
[312533488,1705947523195,-500.0,0.00041369,31]
[312533489,1705947523220,-500.0,0.00041369,31]
[312533490,1705947523246,-500.0,0.00041369,31]
[312533491,1705947523270,-500.0,0.00041369,31]
[312533492,1705947523295,-500.0,0.00041369,31]
[312533493,1705947523319,-506.86222648,0.00041369,31]
[312533494,1705947523343,-500.0,0.00041369,31]
[312533495,1705947523367,-500.0,0.00041369,31]
[312533496,1705947523392,-679.61,0.00041369,31]
[312533497,1705947523416,-500.0,0.00041369,31]
[312533498,1705947523440,-505.56376993,0.00041369,31]
[312533499,1705947523464,-500.0,0.00041369,31]
[312533500,1705947523489,-500.0,0.00041369,31]
[312533501,1705947523513,-801.83,0.00041369,31]
[312533502,1705947523537,-500.0,0.00041369,31]
[312533503,1705947523562,-1114.81,0.00041369,31]
[312533504,1705947523587,-529.18,0.00041369,31]
[312533505,1705947523611,-333.64652128,0.00041369,31]
[312533506,1705947523635,-500.0,0.00041369,31]
[312533507,1705947523658,-463.29261474,0.00041369,31]
[312533508,1705947523787,-500.0,0.00041369,31]
[312533509,1705947523813,-540.46243249,0.00041369,31]
[312533510,1705947523839,-500.0,0.00041369,31]
[312533511,1705947523862,-500.0,0.00041369,31]
[312533512,1705947523885,-501.38953766,0.00041369,31]
[312533513,1705947523908,-768.35,0.00041369,31]
[312533514,1705947523932,-500.0,0.00041369,31]
[312533515,1705947523956,-500.0,0.00041369,31]
[312533516,1705947523979,-1774.13,0.00041369,31]
[312533517,1705947524003,-502.70538727,0.00041369,31]
[312533518,1705947524026,-604.97,0.00041369,31]
[312533519,1705947524050,-500.0,0.00041369,31]
[312533520,1705947524074,-496.31125397,0.00041369,31]
[312533521,1705947524098,-1380.22,0.00041369,31]
[312533522,1705947524128,-1732.72,0.00041369,31]
[312533523,1705947524152,-873.08,0.00041369,31]
[312533524,1705947524175,-509.63994834,0.00041369,31]
[312533525,1705947524199,-500.0,0.00041369,31]
[312533526,1705947524223,-502.83340354,0.00041369,31]
[312533527,1705947524247,-505.84278509,0.00041369,31]
[312533528,1705947524271,-345.28999523,0.00041369,31]
[312533529,1705947524294,-500.99033115,0.00041369,31]
[312533530,1705947524317,-500.0,0.00041369,31]
[312533531,1705947524341,-500.0,0.00041369,31]
[312533532,1705947524364,-1700.64,0.00041369,31]
[312533533,1705947524387,-500.0,0.00041369,31]
[312533534,1705947524412,-500.0,0.00041369,31]
[312533535,1705947524436,-500.0,0.00041369,31]
[312533536,1705947524459,-500.0,0.00041369,31]
[312533537,1705947524483,-500.0,0.00041369,31]
[312533538,1705947524507,-500.0,0.00041369,31]
[312533539,1705947524531,-500.0,0.00041369,31]
[312533540,1705947524554,-638.47,0.00041369,31]
[312533541,1705947524577,-500.0,0.00041369,31]
[312533542,1705947524600,-500.0,0.00041369,31]
[312533543,1705947524624,-829.19,0.00041369,31]
[312533544,1705947524647,-1817.75,0.00041369,31]
[312533545,1705947524669,-500.0,0.00041369,31]
[312533546,1705947524692,-500.0,0.00041369,31]
[312533547,1705947524717,-1681.68,0.00041369,31]
[312533548,1705947524741,-508.20453236,0.00041369,31]
[312533549,1705947524764,-676.26,0.00041369,31]
[312533550,1705947524788,-500.0,0.00041369,31]
[312533551,1705947524811,-500.0,0.00041369,31]
[312533552,1705947524835,-349.44193352,0.00041369,31]
[312533553,1705947524859,-500.0,0.00041369,31]
[312533554,1705947524883,-500.0,0.00041369,31]
[312533555,1705947524908,-646.55430956,0.00041369,31]
[312533556,1705947524932,-500.0,0.00041369,31]
[312533557,1705947524958,-500.0,0.00041369,31]
[312533558,1705947524982,-500.0,0.00041369,31]
[312533559,1705947525006,-500.0,0.00041369,31]
[312533560,1705947525032,-500.0,0.00041369,31]
[312533561,1705947525058,-640.07,0.00041369,31]
[312533562,1705947525082,-249.19493928,0.00041369,31]
[312533563,1705947525115,-500.0,0.00041369,31]
[312533564,1705947525148,-552.87,0.00041369,31]
[312533565,1705947525174,-500.0,0.00041369,31]
[312533566,1705947525198,-949.36,0.00041369,31]
[312533567,1705947525222,-1114.79,0.00041369,31]
[312533568,1705947525245,-500.3761187,0.00041369,31]
[312533569,1705947525270,-1340.33,0.00041369,31]
[312533570,1705947525294,-500.0,0.00041369,31]
[312533571,1705947525318,-500.0,0.00041369,31]
[312533572,1705947525343,-500.0,0.00041369,31]
[312533573,1705947525368,-1551.85,0.00041369,31]
[312533574,1705947525393,-559.0919186,0.00041369,31]
[312533575,1705947525419,-1962.09,0.00041369,31]
[312533576,1705947525445,-500.0,0.00041369,31]
[312533577,1705947525470,-500.0,0.00041369,31]
[312533578,1705947525495,-1825.15,0.00041369,31]
[312533579,1705947525519,-503.08171592,0.00041369,31]
[312533580,1705947525544,-2171.83,0.00041369,31]
[312533581,1705947525570,-500.0,0.00041369,31]
[312533582,1705947525594,-500.0,0.00041369,31]
[312533583,1705947525618,-500.0,0.00041369,31]
[312533584,1705947525642,-1619.98,0.00041369,31]
[312533585,1705947525666,-500.0,0.00041369,31]
[312533586,1705947525690,-500.0,0.00041369,31]
[312533587,1705947525713,-502.45320974,0.00041369,31]
[312533588,1705947525737,-500.0,0.00041369,31]
[312533589,1705947525760,-500.0,0.00041369,31]
[312533590,1705947525784,-507.7941041,0.00041369,31]
[312533591,1705947525807,-741.59,0.00041369,31]
[312533592,1705947525830,-220.6923641,0.00041369,31]
[312533593,1705947525855,-556.47,0.00041369,31]
[312533594,1705947525879,-500.0,0.00041369,31]
[312533595,1705947525904,-503.47213639,0.00041369,31]
[312533596,1705947525928,-1775.47,0.00041369,31]
[312533597,1705947525951,-500.0,0.00041369,31]
[312533598,1705947525975,-500.0,0.00041369,31]
[312533599,1705947525999,-564.89,0.00041369,31]
[312533600,1705947526023,-500.0,0.00041369,31]
[312533601,1705947526048,-500.0,0.00041369,31]
[312533602,1705947526072,-1289.28,0.00041369,31]
[312533603,1705947526096,-500.0,0.00041369,31]
[312533604,1705947526121,-503.49950782,0.00041369,31]
[312533605,1705947526145,-1337.29,0.00041369,31]
[312533606,1705947526168,-1443.88,0.00041369,31]
[312533607,1705947526192,-150.0,0.000414,30]
[312533608,1705947526217,-1520.0,0.00041479,30]
[312533609,1705947526241,-162.52459061,0.00041527,30]
[312533610,1705947526266,-447.60588291,0.0004154,30]
[312533611,1705947526292,-522.210408,0.00041553,120]
[312533612,1705947526442,-150.0,0.000416,30]
[312533613,1705947526467,-1047.38,0.00041643,31]
[312533614,1705947526491,-500.0,0.00041643,31]
[312533615,1705947526515,-500.0,0.00041643,31]
[312533616,1705947526539,-500.0,0.00041643,31]
[312533617,1705947526563,-500.0,0.00041643,31]
[312533618,1705947526588,-500.0,0.00041643,31]
[312533619,1705947526611,-571.3,0.00041643,31]
[312533620,1705947526635,-500.0,0.00041643,31]
[312533621,1705947526660,-500.0,0.00041643,31]
[312533622,1705947526683,-500.0,0.00041643,31]
[312533623,1705947526708,-502.80042383,0.00041643,31]
[312533624,1705947526732,-500.0,0.00041643,31]
[312533625,1705947526756,-500.0,0.00041643,31]
[312533626,1705947526780,-174.10869606,0.00041643,31]
[312533627,1705947526803,-500.0,0.00041643,31]
[312533628,1705947526828,-500.0,0.00041643,31]
[312533629,1705947526852,-538.96720159,0.00041643,31]
[312533630,1705947526876,-500.0,0.00041643,31]
[312533631,1705947526900,-500.0,0.00041643,31]
[312533632,1705947526927,-500.0,0.00041643,31]
[312533633,1705947526951,-500.0,0.00041643,31]
[312533634,1705947526976,-150.0,0.00041643,31]
[312533635,1705947527001,-500.0,0.00041643,31]
[312533636,1705947527026,-500.0,0.00041643,31]
[312533637,1705947527049,-500.0,0.00041643,31]
[312533638,1705947527073,-567.11,0.00041643,31]
[312533639,1705947527098,-500.0,0.00041643,31]
[312533640,1705947527123,-500.0,0.00041643,31]
[312533641,1705947527147,-500.0,0.00041643,31]
[312533642,1705947527172,-508.87785453,0.00041643,31]
[312533643,1705947527197,-500.0,0.00041643,31]
[312533644,1705947527223,-1126.09,0.00041643,31]
[312533645,1705947527246,-500.0,0.00041643,31]
[312533646,1705947527270,-1014.23,0.00041643,31]
[312533647,1705947527295,-515.2,0.00041643,31]